fUST/lending_fUST_20250602
["ID","MTS","AMOUNT","RATE_DAILY","PERIOD"]
[363697402,1748821832348,-269.75162871,0.00017996,2]
[363697404,1748821832361,-160.24837129,0.00017996,2]
[363697406,1748821832370,-404.32837293,0.00017996,2]
[363697656,1748821838005,-25.67162707,0.00017996,2]
[363697657,1748821838015,-377.51865342,0.00017996,2]
[363697658,1748821838028,-52.48134658,0.00017996,2]
[363697659,1748821838038,-303.08,0.00017996,2]
[363697661,1748821838048,-430.0,0.00017996,2]
[363697663,1748821838057,-430.0,0.00017996,2]
[363697666,1748821838067,-337.64801123,0.00017996,2]
[363697669,1748821838077,-2185.03088593,0.00017997,2]
[363697672,1748821838089,-6774.51055862,0.00017997,2]
[363697674,1748821838103,-3681.66136956,0.00017997,2]
[363697679,1748821838140,-12258.79718589,0.00017997,2]
[363697681,1748821838150,-182.7396468,0.00018028,2]
[363697683,1748821838159,-755.56,0.00018158,2]
[363697685,1748821838170,-571.62550594,0.0001827,2]
[363697687,1748821838180,-430.0,0.0001827,2]
[363697689,1748821838189,-430.0,0.0001827,2]
[363697691,1748821838199,-430.0,0.0001827,2]
[363697693,1748821838210,-430.0,0.0001827,2]
[363697694,1748821838220,-430.0,0.0001852,2]
[363697696,1748821838229,-430.0,0.0001852,2]
[363697698,1748821838239,-1000.0,0.0001852,2]
[363697700,1748821838248,-430.0,0.00018544,2]
[363697702,1748821838258,-553.57512913,0.00018544,2]
[363697704,1748821838402,-430.0,0.00018544,2]
[363697705,1748821838413,-430.0,0.00018544,2]
[363697706,1748821838423,-500.0,0.000187,2]
[363697707,1748821838432,-437.28126419,0.000187,2]
[363697708,1748821838442,-634.91487522,0.000187,2]
[363697709,1748821838452,-430.0,0.00018729,2]
[363697710,1748821838461,-430.0,0.00018729,2]
[363697711,1748821838470,-430.0,0.0001873,2]
[363697712,1748821838480,-435.06,0.0001873,2]
[363697713,1748821838490,-160.0,0.00018773,2]
[363697714,1748821838499,-423.51412927,0.00018773,2]
[363697715,1748821838509,-212.80060342,0.00018773,2]
[363697716,1748821838518,-229.3709046,0.00018773,2]
[363697717,1748821838527,-160.0,0.00018773,2]
[363697718,1748821838537,-160.0,0.00018773,2]
[363697719,1748821838546,-160.0,0.00018773,2]
[363697720,1748821838555,-160.0,0.00018773,2]
[363697721,1748821838565,-12666.87825251,0.00018773,2]
[363697722,1748821838574,-842.5625,0.00018773,2]
[363697723,1748821838583,-160.0,0.00018773,2]
[363697724,1748821838593,-430.0,0.00018794,2]
[363697725,1748821838602,-385.01281503,0.00018794,2]
[363697726,1748821838611,-235.99,0.00018818,2]
[363697727,1748821838622,-430.0,0.00018818,2]
[363697728,1748821838631,-795.99330685,0.000189,2]
[363697729,1748821838644,-438.27119838,0.000189,2]
[363697730,1748821838654,-900.0,0.00018971,2]
[363697731,1748821838664,-430.0,0.00019003,2]
[363697732,1748821838673,-430.0,0.00019003,2]
[363697733,1748821838684,-430.0,0.00019004,2]
[363697734,1748821838694,-435.06,0.00019004,2]
[363697735,1748821838704,-795.99330672,0.00019072,2]
[363697736,1748821838714,-430.0,0.00019092,2]
[363697737,1748821838724,-173.899305,0.00019178,2]
[363697738,1748821838733,-795.99330672,0.00019245,2]
[363697739,1748821838743,-430.0,0.00019277,2]
[363697740,1748821838752,-430.0,0.00019277,2]
[363697741,1748821838762,-430.0,0.00019278,2]
[363697742,1748821838771,-435.06,0.00019278,2]
[363697743,1748821838781,-430.0,0.00019366,2]
[363697744,1748821838791,-795.99330672,0.00019417,2]
[363697745,1748821838801,-290.69609104,0.00019551,2]
[363697746,1748821838810,-430.0,0.00019551,2]
[363697747,1748821838820,-430.0,0.00019552,2]
[363697748,1748821838830,-435.06,0.00019552,2]
[363697749,1748821838839,-795.99330672,0.0001959,2]
[363697750,1748821838849,-337.661,0.00019601,2]
[363697751,1748821838859,-420.0,0.00019635,2]
[363697752,1748821838868,-430.0,0.0001964,2]
[363697753,1748821838878,-795.99330672,0.00019762,2]
[363697754,1748821838887,-1511.13,0.00019809,2]
[363697755,1748821838896,-430.0,0.00019825,2]
[363697756,1748821838906,-186.24748847,0.00019826,2]
[363697757,1748821838916,-435.06,0.00019826,2]
[363697758,1748821838926,-430.0,0.00019914,2]
[363697759,1748821838936,-795.99330672,0.00019934,2]
[363697760,1748821838945,-900.0,0.00020067,2]
[363697761,1748821838955,-430.0,0.00020099,2]
[363697762,1748821838966,-435.06,0.000201,2]
[363697763,1748821838975,-795.99330672,0.00020107,2]
[363697764,1748821838985,-1000.0,0.00020161,2]
[363697765,1748821838995,-266.552481,0.00020187,2]
[363697766,1748821839004,-430.0,0.00020188,2]
[363697767,1748821839014,-795.99330672,0.00020279,3]
[363697768,1748821839023,-430.0,0.00020373,2]
[363697769,1748821839034,-435.06,0.00020374,2]
[363697770,1748821839043,-795.99330672,0.00020452,3]
[363697771,1748821839053,-430.0,0.00020462,2]
[363697772,1748821839062,-795.99330672,0.00020624,3]
[363697773,1748821839072,-430.0,0.00020647,2]
[363697774,1748821839082,-435.06,0.00020648,2]
[363697775,1748821839092,-430.0,0.00020736,2]
[363697776,1748821839101,-795.99330672,0.00020797,4]
[363697777,1748821839111,-430.0,0.00020921,2]
[363697778,1748821839121,-435.06,0.00020922,2]
[363697779,1748821839131,-795.99330672,0.00020969,4]
[363697780,1748821839140,-430.0,0.0002101,2]
[363697781,1748821839149,-795.99330672,0.00021141,4]
[363697782,1748821839160,-900.0,0.00021163,2]
[363697783,1748821839170,-430.0,0.00021195,2]
[363697784,1748821839180,-435.06,0.00021196,2]
[363697785,1748821839190,-430.0,0.00021284,2]
[363697786,1748821839200,-795.99330672,0.00021314,5]
[363697787,1748821839210,-587.0,0.00021424,2]
[363697788,1748821839220,-429.74,0.00021458,10]
[363697789,1748821839230,-2266.69,0.0002146,2]
[363697790,1748821839240,-34448.08696,0.00021468,2]
[363697791,1748821839249,-430.0,0.00021469,2]
[363697792,1748821839260,-435.06,0.0002147,2]
[363697793,1748821839269,-795.99330672,0.00021486,5]
[363697794,1748821839279,-430.0,0.00021558,2]
[363697795,1748821839289,-795.99330672,0.00021659,5]
[363697796,1748821839299,-430.0,0.00021743,2]
[363697797,1748821839310,-435.06,0.00021744,2]
[363697798,1748821839320,-795.99330672,0.00021831,6]
[363697799,1748821839330,-430.0,0.00021832,2]
[363697800,1748821839340,-150.0,0.00021918,2]
[363697801,1748821839349,-177.0,0.00022,2]
[363697802,1748821839359,-171.0,0.00022,2]
[363697803,1748821839368,-174.0,0.00022,2]
[363697804,1748821839378,-795.99330672,0.00022003,6]
[363697805,1748821839388,-430.0,0.00022017,2]
[363697806,1748821839399,-435.06,0.00022018,2]
[363697807,1748821839409,-345.46902719,0.00022106,2]
[363697808,1748821839419,-795.99330672,0.00022176,6]
[363697809,1748821839429,-352.4972578,0.00022247,2]
[363697810,1748821839439,-900.0,0.00022259,2]
[363697811,1748821839448,-430.0,0.00022291,2]
[363697812,1748821839459,-435.06,0.00022292,2]
[363697813,1748821839468,-795.99330672,0.00022348,7]
[363697814,1748821839479,-185.36254939,0.00022384,2]
[363697815,1748821839491,-1000.0,0.00022451,2]
[363697816,1748821839500,-500.0,0.00022481,2]
[363697817,1748821839510,-500.0,0.00022481,2]
[363697818,1748821839519,-925.07920356,0.00022481,2]
[363697820,1748821839529,-500.0,0.00022481,2]
[363697822,1748821839539,-925.07920356,0.00022481,2]
[363697824,1748821839549,-500.0,0.00022481,2]
[363697826,1748821839559,-500.0,0.00022481,2]
[363697827,1748821839569,-925.07920356,0.00022481,2]
[363697829,1748821839579,-925.07920356,0.00022481,2]
[363697831,1748821839588,-500.0,0.00022481,2]
[363697833,1748821839599,-925.07920356,0.00022481,2]
[363697834,1748821839608,-558.79719546,0.00022481,2]
[363697836,1748821839619,-420.44266687,0.00022481,2]
[363697837,1748821839629,-925.07920356,0.00022481,2]
[363697838,1748821839643,-925.07920356,0.00022481,2]
[363697839,1748821839653,-500.0,0.00022481,2]
[363697840,1748821839663,-500.0,0.00022481,2]
[363697841,1748821839672,-925.07920356,0.00022481,2]
[363697842,1748821839682,-925.07920356,0.00022481,2]
[363697843,1748821839691,-925.07920356,0.00022481,2]
[363697844,1748821839701,-154.67873888,0.00022482,2]
[363697845,1748821839711,-151.0,0.00022482,2]
[363697846,1748821839723,-300.0,0.00022482,2]
[363697847,1748821839733,-300.0,0.00022482,2]
[363697848,1748821839743,-300.0,0.00022482,2]
[363697849,1748821839753,-207.4,0.00022482,2]
[363697850,1748821839763,-300.0,0.00022482,2]
[363697851,1748821839772,-800.0,0.00022482,2]
[363697852,1748821839782,-300.0,0.00022482,2]
[363697853,1748821839792,-800.0,0.00022482,2]
[363697854,1748821839802,-5000.0,0.00022482,2]
[363697855,1748821839811,-800.0,0.00022482,2]
[363697856,1748821839821,-300.0,0.00022482,2]
[363697857,1748821839830,-800.0,0.00022482,2]
[363697858,1748821839840,-300.0,0.00022482,2]
[363697859,1748821839850,-300.0,0.00022482,2]
[363697860,1748821839859,-800.0,0.00022482,2]
[363697861,1748821839869,-300.0,0.00022482,2]
[363697862,1748821839879,-800.0,0.00022482,2]
[363697863,1748821839888,-300.0,0.00022482,2]
[363697864,1748821839898,-800.0,0.00022482,2]
[363697865,1748821839907,-300.0,0.00022482,2]
[363697866,1748821839916,-800.0,0.00022482,2]
[363697867,1748821839926,-1215.5802251,0.00022482,2]
[363697868,1748821839937,-300.0,0.00022482,2]
[363697869,1748821839946,-800.0,0.00022482,2]
[363697870,1748821839957,-300.0,0.00022482,2]
[363697871,1748821839967,-800.0,0.00022482,2]
[363697872,1748821839976,-300.0,0.00022482,2]
[363697873,1748821839985,-800.0,0.00022482,2]
[363697874,1748821839995,-800.0,0.00022482,2]
[363697875,1748821840005,-300.0,0.00022482,2]
[363697876,1748821840015,-800.0,0.00022482,2]
[363697877,1748821840025,-800.0,0.00022482,2]
[363697878,1748821840035,-800.0,0.00022482,2]
[363697879,1748821840045,-795.99330672,0.00022521,7]
[363697880,1748821840054,-7498.7979491,0.00022525,2]
[363697881,1748821840064,-5000.0,0.00022525,2]
[363697882,1748821840074,-5000.0,0.00022525,2]
[363697883,1748821840083,-5000.0,0.00022525,2]
[363697884,1748821840093,-5000.0,0.00022525,2]
[363697885,1748821840104,-151.0,0.00022525,7]
[363697887,1748821840113,-430.0,0.00022565,2]
[363697889,1748821840123,-435.06,0.00022566,2]
[363697891,1748821840133,-185.36254939,0.00022685,2]
[363697893,1748821840143,-795.99330672,0.00022693,7]
[363697895,1748821840152,-430.0,0.00022839,2]
[363697897,1748821840162,-435.06,0.0002284,2]
[363697899,1748821840172,-795.99330672,0.00022866,8]
[363697901,1748821840181,-600.0,0.00022905,2]
[363697903,1748821840191,-185.64465648,0.00022986,2]
[363697905,1748821840201,-185.36254939,0.00022986,2]
[363697907,1748821840211,-185.64465646,0.00022986,2]
[363697909,1748821840220,-160.0,0.00023,3]
[363697911,1748821840230,-151.0,0.00023,7]
[363697913,1748821840239,-177.0,0.00023014,7]
[363697915,1748821840249,-174.0,0.00023014,7]
[363697917,1748821840260,-272.80097017,0.0002303,2]
[363697919,1748821840270,-5000.0,0.0002303,2]
[363697921,1748821840279,-795.99330672,0.00023038,8]
[363697923,1748821840289,-3022.26,0.0002311,2]
[363697925,1748821840299,-352.85,0.00023113,2]
[363697927,1748821840309,-435.06,0.00023113,2]
[363697930,1748821840318,-751.56940287,0.00023143,2]
[363697932,1748821840330,-250.0,0.00023147,2]
[363697934,1748821840339,-8836.68,0.00023162,7]
[363697936,1748821840349,-795.99330672,0.0002321,8]
[363697938,1748821840359,-185.36254939,0.00023288,2]
[363697940,1748821840369,-962.0,0.000233,2]
[363697941,1748821840378,-708.0,0.000233,2]
[363697943,1748821840388,-2226.0,0.000233,2]
[363697945,1748821840398,-405.0,0.000233,2]
[363697947,1748821840407,-246.835,0.000233,2]
[363697949,1748821840416,-175.527556,0.00023323,7]
[363697952,1748821840427,-2020.859206,0.00023324,3]
[363697953,1748821840436,-900.0,0.00023355,2]
[363697955,1748821840445,-823.0,0.00023376,2]
[363697957,1748821840457,-795.99330672,0.00023383,9]
[363697960,1748821840466,-435.06,0.00023387,2]
[363697962,1748821840476,-21292.57022538,0.00023463,2]
[363697963,1748821840486,-2000.0,0.00023479,2]
[363697965,1748821840495,-2000.0,0.00023479,2]
[363697968,1748821840505,-2000.0,0.00023479,2]
[363697969,1748821840515,-2000.0,0.00023479,2]
[363697972,1748821840525,-2000.0,0.00023479,2]
[363697974,1748821840535,-2000.0,0.00023479,2]
[363697976,1748821840544,-659.52,0.00023479,2]
[363697977,1748821840553,-811.83966442,0.00023505,2]
[363697979,1748821840563,-800.0,0.00023538,2]
[363697981,1748821840571,-800.0,0.00023555,2]
[363697983,1748821840581,-795.99330672,0.00023555,9]
[363697985,1748821840590,-160.0,0.00023561,2]
[363697987,1748821840600,-151.0,0.00023562,7]
[363697990,1748821840609,-151.0,0.00023562,7]
[363697992,1748821840618,-151.0,0.00023562,7]
[363697994,1748821840628,-800.0,0.00023571,2]
[363697995,1748821840641,-800.0,0.00023574,2]
[363697998,1748821840651,-160.0,0.00023577,2]
[363698000,1748821840661,-5000.0,0.00023578,2]
[363698002,1748821840670,-160.0,0.00023599,2]
[363698003,1748821840681,-160.97790675,0.00023612,2]
[363698006,1748821840690,-800.0,0.00023623,2]
[363698008,1748821840701,-800.0,0.00023623,2]
[363698010,1748821840709,-800.0,0.00023626,2]
[363698012,1748821840720,-435.06,0.00023661,2]
[363698013,1748821840729,-229.117703,0.000237,7]
[363698015,1748821840738,-229.117703,0.000237,7]
[363698017,1748821840747,-842.5625,0.000237,3]
[363698019,1748821840757,-3377.01357008,0.000237,2]
[363698021,1748821840766,-153.02,0.000237,31]
[363698023,1748821840775,-153.02,0.000237,31]
[363698025,1748821840784,-153.02,0.000237,31]
[363698027,1748821840794,-153.02,0.000237,31]
[363698029,1748821840803,-153.02,0.000237,31]
[363698032,1748821840813,-153.02,0.000237,31]
[363698033,1748821840822,-153.02,0.000237,31]
[363698035,1748821840832,-423.51412927,0.000237,3]
[363698037,1748821840841,-229.3709046,0.000237,3]
[363698039,1748821840850,-795.99330672,0.00023728,9]
[363698041,1748821840860,-800.0,0.00023749,2]
[363698044,1748821840870,-561.80109613,0.00023773,2]
[363698045,1748821840879,-500.0,0.00023773,2]
[363698048,1748821840889,-501.91113092,0.00023773,2]
[363698050,1748821840898,-500.0,0.00023773,2]
[363698052,1748821840908,-578.41688806,0.00023773,2]
[363698053,1748821840917,-500.0,0.00023773,2]
[363698056,1748821840927,-500.0,0.00023773,2]
[363698058,1748821840936,-500.0,0.00023773,2]
[363698060,1748821840945,-239.8002961,0.00023773,2]
[363698062,1748821840956,-500.0,0.00023773,2]
[363698064,1748821840966,-500.0,0.00023773,2]
[363698066,1748821840977,-500.0,0.00023773,2]
[363698068,1748821840986,-500.0,0.00023773,2]
[363698070,1748821840996,-151.0,0.00023773,2]
[363698072,1748821841006,-153.726764,0.00023773,7]
[363698074,1748821841016,-579.18389,0.00023773,7]
[363698076,1748821841027,-579.18389,0.00023773,7]
[363698078,1748821841036,-500.0,0.00023785,9]
[363698080,1748821841046,-1218.0570774,0.00023794,2]
[363698082,1748821841056,-500.0,0.00023799,9]
[363698084,1748821841065,-114597.57844874,0.000238,2]
[363698087,1748821841080,-381.59056831,0.000238,2]
[363698089,1748821841092,-8653.68419657,0.000238,2]
[363698091,1748821841104,-964.5077539,0.000238,2]
[363698094,1748821841116,-12499.98717294,0.000238,2]
[363698102,1748821841184,-652.05725676,0.000238,2]
[363698105,1748821841205,-30196.47804711,0.000238,2]
[363698107,1748821841216,-426.69587055,0.000238,2]
[363698248,1748822228796,254.050829,0.00013699,2]
[363698250,1748822316638,1100.0,0.00021918,60]
[363698251,1748822431532,200.0,0.0002375,120]
[363698252,1748822491354,200.0,0.00024589,120]
[363698256,1748822671342,200.0,0.00023769,120]
[363698258,1748822731920,200.0,0.00024591,120]
[363698260,1748822867140,500.0,0.0002465,120]
[363698298,1748823032400,-5000.0,0.00016536,2]
[363698299,1748823032410,-300.0,0.00016873,2]
[363698300,1748823032421,-300.0,0.00016873,2]
[363698301,1748823032430,-1197.0,0.00016873,2]
[363698302,1748823032440,-5000.0,0.00016874,2]
[363698303,1748823032450,-430.0,0.0001697,2]
[363698304,1748823032460,-430.0,0.0001697,2]
[363698305,1748823032470,-430.0,0.0001697,2]
[363698306,1748823032480,-430.0,0.0001697,2]
[363698307,1748823032489,-430.0,0.0001697,2]
[363698308,1748823032499,-430.0,0.0001697,2]
[363698309,1748823032509,-700.17,0.0001697,2]
[363698310,1748823032519,-740.97,0.0001697,2]
[363698311,1748823032528,-698.97,0.0001697,2]
[363698312,1748823032538,-430.0,0.0001697,2]
[363698313,1748823032548,-1125.89,0.0001697,2]
[363698314,1748823032558,-430.0,0.0001697,2]
[363698315,1748823032567,-430.0,0.0001697,2]
[363698316,1748823032577,-430.0,0.0001697,2]
[363698317,1748823032588,-246.61382571,0.0001697,2]
[363698318,1748823032598,-812.58,0.0001697,2]
[363698319,1748823032607,-260.8928092,0.0001697,2]
[363698320,1748823032617,-500.0,0.0001697,2]
[363698321,1748823032626,-24900.0,0.00016971,2]
[363698322,1748823032636,-430.0,0.00017244,2]
[363698323,1748823032645,-430.0,0.00017244,2]
[363698324,1748823032655,-430.0,0.00017244,2]
[363698325,1748823032665,-431.42860374,0.00017244,2]
[363698327,1748823032674,-700.17,0.00017244,2]
[363698328,1748823032684,-740.97,0.00017244,2]
[363698329,1748823032694,-698.97,0.00017244,2]
[363698330,1748823032703,-430.0,0.00017244,2]
[363698331,1748823032713,-1125.89,0.00017244,2]
[363698332,1748823032723,-430.0,0.00017244,2]
[363698333,1748823032732,-430.0,0.00017244,2]
[363698334,1748823032742,-812.58,0.00017244,2]
[363698335,1748823032751,-430.0,0.00017518,2]
[363698336,1748823032760,-430.0,0.00017518,2]
[363698337,1748823032770,-700.17,0.00017518,2]
[363698338,1748823032779,-740.97,0.00017518,2]
[363698339,1748823032789,-698.97,0.00017518,2]
[363698340,1748823032799,-430.0,0.00017518,2]
[363698341,1748823032810,-1125.89,0.00017518,2]
[363698342,1748823032820,-430.0,0.00017518,2]
[363698343,1748823032829,-354.39776051,0.00017518,2]
[363698344,1748823032840,-812.58,0.00017518,2]
[363698345,1748823032849,-430.0,0.00017792,2]
[363698346,1748823032859,-186.68,0.00017792,2]
[363698347,1748823032869,-700.17,0.00017792,2]
[363698348,1748823032878,-740.97,0.00017792,2]
[363698349,1748823032888,-698.97,0.00017792,2]
[363698350,1748823032898,-430.0,0.00017792,2]
[363698351,1748823032908,-1125.89,0.00017792,2]
[363698352,1748823032918,-430.0,0.00017792,2]
[363698353,1748823032928,-812.58,0.00017792,2]
[363698354,1748823032937,-150.25210295,0.000178,2]
[363698355,1748823032947,-220.46305388,0.00017893,2]
[363698356,1748823032957,-776.52,0.00017993,2]
[363698357,1748823032967,-430.0,0.00017993,2]
[363698358,1748823032977,-430.0,0.00017993,2]
[363698359,1748823032986,-430.0,0.00017993,2]
[363698360,1748823032995,-430.0,0.00017993,2]
[363698361,1748823033005,-431.25,0.00017993,2]
[363698362,1748823033016,-232.7082935,0.00017993,2]
[363698363,1748823033026,-430.0,0.00017993,2]
[363698364,1748823033035,-430.0,0.00017993,2]
[363698365,1748823033046,-430.0,0.00017993,2]
[363698366,1748823033056,-430.0,0.00017993,2]
[363698367,1748823033067,-430.0,0.00017993,2]
[363698368,1748823033078,-430.0,0.00017993,2]
[363698369,1748823033093,-430.0,0.00017993,2]
[363698370,1748823033103,-430.0,0.00017993,2]
[363698371,1748823033113,-430.0,0.00017993,2]
[363698372,1748823033123,-430.0,0.00017993,2]
[363698373,1748823033135,-430.0,0.00017993,2]
[363698374,1748823033145,-430.0,0.00017993,2]
[363698375,1748823033155,-430.0,0.00017993,2]
[363698376,1748823033165,-977.45,0.00017993,2]
[363698377,1748823033175,-430.0,0.00017993,2]
[363698379,1748823033186,-430.0,0.00017993,2]
[363698381,1748823033197,-430.0,0.00017993,2]
[363698383,1748823033207,-430.0,0.00017993,2]
[363698385,1748823033216,-430.0,0.00017993,2]
[363698387,1748823033227,-157.69,0.00017994,2]
[363698389,1748823033237,-357.35223421,0.00017994,2]
[363698391,1748823033247,-202.66,0.00017994,2]
[363698394,1748823033258,-430.0,0.00017994,2]
[363698396,1748823033269,-430.0,0.00017994,2]
[363698398,1748823033279,-404.51258934,0.00017994,2]
[363698400,1748823033291,-430.0,0.00017994,2]
[363698402,1748823033302,-430.0,0.00017994,2]
[363698404,1748823033311,-430.0,0.00017994,2]
[363698406,1748823033321,-450.0,0.00017994,2]
[363698408,1748823033334,-302.85,0.00017994,2]
[363698410,1748823033344,-430.0,0.00017994,2]
[363698412,1748823033354,-430.0,0.00017994,2]
[363698414,1748823033363,-430.0,0.00017994,2]
[363698415,1748823033374,-430.0,0.00017994,2]
[363698416,1748823033383,-430.0,0.00017994,2]
[363698417,1748823033394,-228.86,0.00017994,2]
[363698418,1748823033404,-430.0,0.00017994,2]
[363698419,1748823033413,-352.57628775,0.00017994,2]
[363698420,1748823033423,-430.0,0.00017994,2]
[363698421,1748823033433,-430.0,0.00017994,2]
[363698422,1748823033444,-430.0,0.00017994,2]
[363698423,1748823033454,-430.0,0.00017994,2]
[363698424,1748823033464,-430.0,0.00017994,2]
[363698425,1748823033474,-430.0,0.00017994,2]
[363698426,1748823033484,-430.0,0.00017994,2]
[363698427,1748823033494,-430.0,0.00017994,2]
[363698428,1748823033504,-430.0,0.00017994,2]
[363698429,1748823033515,-430.0,0.00017994,2]
[363698430,1748823033525,-431.14657705,0.00017994,2]
[363698431,1748823033535,-430.0,0.00017994,2]
[363698432,1748823033544,-430.0,0.00017994,2]
[363698433,1748823033554,-430.0,0.00017994,2]
[363698434,1748823033563,-430.0,0.00017994,2]
[363698435,1748823033573,-430.0,0.00017994,2]
[363698436,1748823033583,-430.0,0.00017994,2]
[363698437,1748823033592,-963.95,0.00017994,2]
[363698438,1748823033602,-430.0,0.00017994,2]
[363698439,1748823033612,-1000.0,0.00017994,2]
[363698440,1748823033624,-430.0,0.00017994,2]
[363698441,1748823033634,-430.0,0.00017994,2]
[363698442,1748823033643,-430.0,0.00017994,2]
[363698443,1748823033653,-430.0,0.00017994,2]
[363698444,1748823033662,-567.47,0.00017994,2]
[363698445,1748823033672,-430.0,0.00017994,2]
[363698446,1748823033681,-430.0,0.00017994,2]
[363698447,1748823033691,-430.0,0.00017994,2]
[363698448,1748823033700,-430.0,0.00017994,2]
[363698449,1748823033709,-430.0,0.00017994,2]
[363698450,1748823033719,-430.0,0.00017994,2]
[363698451,1748823033728,-430.0,0.00017994,2]
[363698452,1748823033738,-430.0,0.00017994,2]
[363698453,1748823033748,-450.0,0.00017994,2]
[363698454,1748823033758,-430.0,0.00017994,2]
[363698455,1748823033768,-430.0,0.00017994,2]
[363698456,1748823033777,-430.0,0.00017994,2]
[363698457,1748823033789,-430.0,0.00017994,2]
[363698458,1748823033799,-352.27976703,0.00017994,2]
[363698459,1748823033809,-430.0,0.00017994,2]
[363698460,1748823033819,-430.0,0.00017994,2]
[363698461,1748823033829,-430.0,0.00017994,2]
[363698462,1748823033839,-430.0,0.00017994,2]
[363698463,1748823033849,-430.0,0.00017994,2]
[363698464,1748823033859,-430.0,0.00017994,2]
[363698465,1748823033868,-430.0,0.00017994,2]
[363698466,1748823033878,-213.15,0.00017994,2]
[363698467,1748823033887,-400.55172451,0.00017994,2]
[363698468,1748823033898,-430.0,0.00017994,2]
[363698469,1748823033907,-155.35276005,0.00017994,2]
[363698470,1748823033917,-434.34168179,0.00017994,2]
[363698471,1748823033926,-1000.0,0.00017995,2]
[363698472,1748823033936,-500.0,0.00017996,2]
[363698473,1748823033946,-27171.33,0.00018,2]
[363698474,1748823033956,-500.0,0.00018023,2]
[363698475,1748823033966,-500.0,0.00018051,2]
[363698476,1748823033975,-430.0,0.00018066,2]
[363698477,1748823033985,-700.17,0.00018066,2]
[363698478,1748823034126,-740.97,0.00018066,2]
[363698479,1748823034138,-698.97,0.00018066,2]
[363698480,1748823034149,-430.0,0.00018066,2]
[363698481,1748823034159,-1125.89,0.00018066,2]
[363698482,1748823034169,-435.96235828,0.00018066,2]
[363698483,1748823034179,-812.58,0.00018066,2]
[363698484,1748823034190,-500.0,0.00018078,2]
[363698485,1748823034200,-196.0,0.00018106,2]
[363698486,1748823034210,-776.52,0.00018267,2]
[363698487,1748823034220,-430.0,0.00018267,2]
[363698488,1748823034230,-430.0,0.00018267,2]
[363698489,1748823034239,-430.0,0.00018267,2]
[363698490,1748823034249,-430.0,0.00018267,2]
[363698491,1748823034259,-431.25,0.00018267,2]
[363698492,1748823034269,-430.0,0.00018267,2]
[363698493,1748823034280,-430.0,0.00018267,2]
[363698494,1748823034290,-430.0,0.00018267,2]
[363698495,1748823034299,-430.0,0.00018267,2]
[363698496,1748823034309,-430.0,0.00018267,2]
[363698497,1748823034318,-430.0,0.00018267,2]
[363698498,1748823034328,-430.0,0.00018267,2]
[363698499,1748823034339,-430.0,0.00018267,2]
[363698500,1748823034349,-530.0,0.00018267,2]
[363698501,1748823034359,-430.0,0.00018267,2]
[363698502,1748823034369,-430.0,0.00018267,2]
[363698503,1748823034378,-430.0,0.00018267,2]
[363698504,1748823034388,-977.45,0.00018267,2]